[Event "*** Titled Tuesday Blitz"]
[Site "Chess.com"]
[Date "2019.03.05"]
[Round "7"]
[White "Pechen_Yeltsina"]
[Black "Muguet7"]
[Result "1-0"]
[WhiteElo "2645"]
[BlackElo "2446"]
[TimeControl "180+2"]
[EndTime "14:40:09 PST"]
[Termination "Pechen_Yeltsina won by resignation"]

1. e4 {[%clk 0:03:01.9]} 1... c5 {[%clk 0:03:00]} 2. Nf3 {[%clk 0:03:02.7]} 2...
d6 {[%clk 0:03:01.3]} 3. g3 {[%clk 0:03:03.7]} 3... Nf6 {[%clk 0:03:02]} 4. d3
{[%clk 0:03:03.8]} 4... Nc6 {[%clk 0:03:03]} 5. Bg2 {[%clk 0:03:05.2]} 5... g6
{[%clk 0:03:03.2]} 6. O-O {[%clk 0:03:06.6]} 6... Bg7 {[%clk 0:03:04.6]} 7. Re1
{[%clk 0:03:08]} 7... O-O {[%clk 0:03:05.9]} 8. c3 {[%clk 0:03:09.4]} 8... e5
{[%clk 0:03:07.2]} 9. a3 {[%clk 0:03:10.2]} 9... Re8 {[%clk 0:03:08]} 10. b4
{[%clk 0:03:10.9]} 10... a6 {[%clk 0:03:08.6]} 11. Nbd2 {[%clk 0:03:12.4]} 11...
b5 {[%clk 0:03:07.5]} 12. bxc5 {[%clk 0:03:03.7]} 12... dxc5 {[%clk 0:03:08.4]}
13. Nb3 {[%clk 0:03:05.1]} 13... c4 {[%clk 0:03:06.4]} 14. dxc4 {[%clk 0:03:07]}
14... bxc4 {[%clk 0:03:06]} 15. Nbd2 {[%clk 0:03:03.1]} 15... Be6 {[%clk
0:03:03.1]} 16. Qa4 {[%clk 0:03:04.1]} 16... Qc7 {[%clk 0:02:34.5]} 17. Nxc4
{[%clk 0:03:02.3]} 17... Na7 {[%clk 0:02:02.5]} 18. Ncxe5 {[%clk 0:02:54.9]}
18... Nd7 {[%clk 0:01:44.5]} 19. Nxd7 {[%clk 0:02:44.9]} 19... Bxd7 {[%clk
0:01:45.2]} 20. Qd1 {[%clk 0:02:14.6]} 20... Bxc3 {[%clk 0:01:41.9]} 21. Bf4
{[%clk 0:02:15.4]} 21... Qd8 {[%clk 0:01:34.2]} 22. Re3 {[%clk 0:02:08.5]} 22...
Bxa1 {[%clk 0:01:32.5]} 23. Qxa1 {[%clk 0:02:10.4]} 23... Ba4 {[%clk 0:01:26.5]}
24. Re1 {[%clk 0:02:06]} 24... Rc8 {[%clk 0:01:18.9]} 25. h4 {[%clk 0:01:58.5]}
25... Nb5 {[%clk 0:01:14.6]} 26. h5 {[%clk 0:01:58.1]} 26... Nc3 {[%clk
0:01:12.7]} 27. h6 {[%clk 0:01:55.2]} 27... f6 {[%clk 0:01:06.5]} 28. e5 {[%clk
0:01:48]} 28... Qd3 {[%clk 0:00:53.2]} 29. exf6 {[%clk 0:01:33.2]} 29... Rxe1+
{[%clk 0:00:50.6]} 30. Qxe1 {[%clk 0:01:34.4]} 30... Qd1 {[%clk 0:00:45.1]} 31.
Qxd1 {[%clk 0:01:28.9]} 31... Bxd1 {[%clk 0:00:46]} 32. Ng5 {[%clk 0:01:29.4]}
32... Ne2+ {[%clk 0:00:45.6]} 33. Kh2 {[%clk 0:01:26.7]} 33... Nxf4 {[%clk
0:00:45.4]} 34. gxf4 {[%clk 0:01:28.4]} 34... Bb3 {[%clk 0:00:46.1]} 35. Bb7
{[%clk 0:01:22.6]} 35... Rc2 {[%clk 0:00:40.7]} 36. Kg3 {[%clk 0:01:17.8]} 36...
a5 {[%clk 0:00:39.7]} 37. Be4 {[%clk 0:01:16.5]} 37... Ra2 {[%clk 0:00:37.9]}
38. f5 {[%clk 0:01:17.4]} 38... Rxa3 {[%clk 0:00:32.3]} 39. f3 {[%clk
0:01:10.3]} 39... gxf5 {[%clk 0:00:22.7]} 40. Bxf5 {[%clk 0:01:12.2]} 40... Bd5
{[%clk 0:00:23.2]} 41. Bxh7+ {[%clk 0:01:12.6]} 41... Kf8 {[%clk 0:00:24]} 42.
Bg6 {[%clk 0:01:10.3]} 42... Bg8 {[%clk 0:00:23.4]} 43. f7 {[%clk 0:01:07.5]}
43... Bxf7 {[%clk 0:00:21.7]} 44. h7 {[%clk 0:01:05.6]} 44... Kg7 {[%clk
0:00:17.5]} 45. Nxf7 {[%clk 0:01:06.8]} 45... Kxg6 {[%clk 0:00:17.5]} 46. h8=Q
{[%clk 0:01:07.4]} 46... Kxf7 {[%clk 0:00:18.8]} 47. Qb8 {[%clk 0:00:59.8]}
47... Ra1 {[%clk 0:00:18.2]} 48. Qb3+ {[%clk 0:00:59.8]} 48... Ke7 {[%clk
0:00:18.4]} 49. Qe3+ {[%clk 0:00:59.6]} 49... Kf7 {[%clk 0:00:19.2]} 50. Qf4+
{[%clk 0:01:01]} 50... Kg6 {[%clk 0:00:19]} 51. Qd6+ {[%clk 0:01:01.4]} 51...
Kf5 {[%clk 0:00:18.5]} 52. Qd5+ {[%clk 0:01:02.7]} 52... Kg6 {[%clk 0:00:19.6]}
53. Qe6+ {[%clk 0:01:03.2]} 53... Kh7 {[%clk 0:00:16.8]} 54. Qf7+ {[%clk
0:01:03.5]} 54... Kh6 {[%clk 0:00:17.2]} 55. Qf6+ {[%clk 0:01:05.4]} 55... Kh5
{[%clk 0:00:18.6]} 56. Qxa1 {[%clk 0:01:07.3]} 1-0

[Event "*** Titled Tuesday Blitz"]
[Site "Chess.com"]
[Date "2019.03.05"]
[Round "7"]
[White "Winehouse83"]
[Black "volcanoexplorer"]
[Result "1-0"]
[WhiteElo "2525"]
[BlackElo "2372"]
[TimeControl "180+2"]
[EndTime "14:40:09 PST"]
[Termination "Winehouse83 won by resignation"]

1. d4 {[%clk 0:03:01.9]} 1... Nf6 {[%clk 0:02:59.6]} 2. c4 {[%clk 0:03:01.8]}
2... e6 {[%clk 0:03:00.7]} 3. Nf3 {[%clk 0:03:02.3]} 3... b6 {[%clk 0:03:01.5]}
4. a3 {[%clk 0:03:03.3]} 4... Bb7 {[%clk 0:03:01.5]} 5. Nc3 {[%clk 0:03:04.6]}
5... Be7 {[%clk 0:03:02.6]} 6. d5 {[%clk 0:03:05.8]} 6... exd5 {[%clk
0:03:01.5]} 7. cxd5 {[%clk 0:03:07.7]} 7... O-O {[%clk 0:02:59.5]} 8. g3 {[%clk
0:03:09]} 8... d6 {[%clk 0:02:45.7]} 9. Bg2 {[%clk 0:03:09.6]} 9... Nbd7 {[%clk
0:02:46.6]} 10. Nd4 {[%clk 0:03:08.7]} 10... Ne5 {[%clk 0:02:42.8]} 11. Bf4
{[%clk 0:02:54.3]} 11... Qd7 {[%clk 0:02:39.2]} 12. O-O {[%clk 0:02:39.5]} 12...
h6 {[%clk 0:02:25.4]} 13. Qc2 {[%clk 0:01:57]} 13... Ng6 {[%clk 0:02:06.2]} 14.
Bc1 {[%clk 0:01:47.8]} 14... a6 {[%clk 0:02:02.4]} 15. Nf5 {[%clk 0:01:47.2]}
15... Rfe8 {[%clk 0:01:51]} 16. Rd1 {[%clk 0:01:32.3]} 16... Bf8 {[%clk
0:01:51.2]} 17. b4 {[%clk 0:01:14.4]} 17... Re5 {[%clk 0:01:35.8]} 18. e4 {[%clk
0:01:14.8]} 18... Ree8 {[%clk 0:01:22.3]} 19. Bb2 {[%clk 0:01:13.2]} 19... Ne5
{[%clk 0:01:18.2]} 20. h3 {[%clk 0:01:08.6]} 20... g6 {[%clk 0:01:18.7]} 21. Ne3
{[%clk 0:01:08.1]} 21... Bg7 {[%clk 0:01:19.7]} 22. f4 {[%clk 0:01:06]} 22...
Nh5 {[%clk 0:00:43.7]} 23. Qf2 {[%clk 0:00:48.2]} 23... Nc4 {[%clk 0:00:41]} 24.
Nxc4 {[%clk 0:00:48.4]} 24... f5 {[%clk 0:00:35.2]} 25. e5 {[%clk 0:00:42.1]}
25... dxe5 {[%clk 0:00:25.7]} 26. fxe5 {[%clk 0:00:39.3]} 26... b5 {[%clk
0:00:18.7]} 27. e6 {[%clk 0:00:40.1]} 27... Qe7 {[%clk 0:00:17.8]} 28. Na5
{[%clk 0:00:40.1]} 28... Rab8 {[%clk 0:00:12.3]} 29. Nxb7 {[%clk 0:00:39.4]}
29... Rxb7 {[%clk 0:00:14.2]} 30. d6 {[%clk 0:00:40.2]} 30... cxd6 {[%clk
0:00:15.2]} 31. Bxb7 {[%clk 0:00:40.9]} 31... Qxb7 {[%clk 0:00:17.1]} 32. Rxd6
{[%clk 0:00:25.6]} 32... Be5 {[%clk 0:00:17]} 33. Rd3 {[%clk 0:00:20.9]} 33...
Qc6 {[%clk 0:00:15.8]} 34. Nd5 {[%clk 0:00:20.4]} 34... Qc4 {[%clk 0:00:08.7]}
35. Rad1 {[%clk 0:00:17.7]} 35... Bb8 {[%clk 0:00:04.5]} 36. e7 {[%clk
0:00:17.7]} 36... Qe4 {[%clk 0:00:04.1]} 37. Qd4 {[%clk 0:00:16.2]} 37... Qxd4+
{[%clk 0:00:02.2]} 38. Bxd4 {[%clk 0:00:17]} 38... Nxg3 {[%clk 0:00:04.1]} 39.
Nf6+ {[%clk 0:00:16.4]} 39... Kf7 {[%clk 0:00:05.6]} 40. Nxe8 {[%clk 0:00:17.6]}
40... Kxe8 {[%clk 0:00:07.5]} 41. Rxg3 {[%clk 0:00:17.5]} 41... Bxg3 {[%clk
0:00:07.8]} 42. Bc5 {[%clk 0:00:17.9]} 42... Bc7 {[%clk 0:00:09]} 43. Kg2 {[%clk
0:00:18.4]} 43... g5 {[%clk 0:00:10.3]} 44. Kf3 {[%clk 0:00:19.5]} 44... h5
{[%clk 0:00:11.5]} 45. Rd5 {[%clk 0:00:20]} 45... g4+ {[%clk 0:00:12.4]} 46. Kg2
{[%clk 0:00:21.3]} 46... f4 {[%clk 0:00:12.2]} 47. Rxh5 {[%clk 0:00:22.2]} 47...
f3+ {[%clk 0:00:13.6]} 48. Kf1 {[%clk 0:00:23]} 48... Be5 {[%clk 0:00:13.7]} 49.
hxg4 {[%clk 0:00:21.6]} 1-0

[Event "*** Titled Tuesday Blitz"]
[Site "Chess.com"]
[Date "2019.03.05"]
[Round "7"]
[White "quesfr"]
[Black "CzechmVIII"]
[Result "1-0"]
[WhiteElo "2240"]
[BlackElo "2129"]
[TimeControl "180+2"]
[EndTime "14:40:11 PST"]
[Termination "quesfr won by resignation"]

1. e4 {[%clk 0:03:01.9]} 1... c5 {[%clk 0:03:00.4]} 2. c3 {[%clk 0:03:00.6]}
2... d5 {[%clk 0:03:00.5]} 3. exd5 {[%clk 0:02:59.4]} 3... Nf6 {[%clk
0:03:01.5]} 4. Bb5+ {[%clk 0:02:43.1]} 4... Nbd7 {[%clk 0:03:01.4]} 5. d4 {[%clk
0:02:24.1]} 5... a6 {[%clk 0:02:51.3]} 6. Be2 {[%clk 0:02:11.6]} 6... Nxd5
{[%clk 0:02:45.6]} 7. Nf3 {[%clk 0:02:12.4]} 7... cxd4 {[%clk 0:02:37.1]} 8.
Qxd4 {[%clk 0:02:10.3]} 8... e6 {[%clk 0:02:35.8]} 9. O-O {[%clk 0:02:07.7]}
9... Qb6 {[%clk 0:02:14.7]} 10. c4 {[%clk 0:02:01.6]} 10... Qxd4 {[%clk
0:02:04.6]} 11. Nxd4 {[%clk 0:02:02.1]} 11... Nb4 {[%clk 0:02:03.3]} 12. Nc3
{[%clk 0:01:40.1]} 12... Bc5 {[%clk 0:01:59.8]} 13. Nb3 {[%clk 0:01:37]} 13...
Be7 {[%clk 0:01:44.9]} 14. Bf4 {[%clk 0:01:27.5]} 14... O-O {[%clk 0:01:38.8]}
15. Rad1 {[%clk 0:01:13]} 15... Nc5 {[%clk 0:01:18.5]} 16. Nxc5 {[%clk
0:01:10.4]} 16... Bxc5 {[%clk 0:01:19.5]} 17. Bf3 {[%clk 0:01:01.4]} 17... Nc6
{[%clk 0:01:18.7]} 18. Bd6 {[%clk 0:00:56.5]} 18... Bxd6 {[%clk 0:01:18.9]} 19.
Rxd6 {[%clk 0:00:57.2]} 19... Ne5 {[%clk 0:01:11.8]} 20. Be2 {[%clk 0:00:58.1]}
20... Ng6 {[%clk 0:01:01.2]} 21. f4 {[%clk 0:00:42]} 21... e5 {[%clk 0:00:57.2]}
22. fxe5 {[%clk 0:00:28.3]} 22... Nxe5 {[%clk 0:00:58.3]} 23. Nd5 {[%clk
0:00:29.4]} 23... Be6 {[%clk 0:00:51.3]} 24. Nc7 {[%clk 0:00:19.1]} 24... Rac8
{[%clk 0:00:52.3]} 25. Nxe6 {[%clk 0:00:18.4]} 25... fxe6 {[%clk 0:00:53.5]} 26.
Rxf8+ {[%clk 0:00:17.4]} 26... Kxf8 {[%clk 0:00:51.6]} 27. b3 {[%clk 0:00:06.6]}
27... Ke7 {[%clk 0:00:50.1]} 28. Rd1 {[%clk 0:00:07]} 28... Rd8 {[%clk
0:00:48.6]} 29. Rxd8 {[%clk 0:00:07.4]} 29... Kxd8 {[%clk 0:00:50.5]} 30. Kf2
{[%clk 0:00:08.4]} 30... Ke7 {[%clk 0:00:51.4]} 31. Ke3 {[%clk 0:00:09.7]} 31...
Kd6 {[%clk 0:00:52.6]} 32. b4 {[%clk 0:00:09.2]} 32... b6 {[%clk 0:00:50.6]} 33.
Ke4 {[%clk 0:00:09.4]} 33... Nd7 {[%clk 0:00:46.6]} 34. a3 {[%clk 0:00:10.2]}
34... a5 {[%clk 0:00:44.4]} 35. h4 {[%clk 0:00:08.4]} 35... axb4 {[%clk
0:00:45]} 36. axb4 {[%clk 0:00:09]} 36... h6 {[%clk 0:00:32.9]} 37. Bd1 {[%clk
0:00:07.7]} 37... Nf6+ {[%clk 0:00:32.3]} 38. Kd4 {[%clk 0:00:07.8]} 38... g5
{[%clk 0:00:26.9]} 39. hxg5 {[%clk 0:00:07.8]} 39... hxg5 {[%clk 0:00:28.2]} 40.
c5+ {[%clk 0:00:08]} 40... bxc5+ {[%clk 0:00:29.5]} 41. bxc5+ {[%clk 0:00:09.5]}
41... Ke7 {[%clk 0:00:21.5]} 42. Ba4 {[%clk 0:00:08.1]} 42... Nd7 {[%clk
0:00:17.3]} 43. Bxd7 {[%clk 0:00:07.2]} 43... Kxd7 {[%clk 0:00:18.6]} 44. Ke5
{[%clk 0:00:08.5]} 44... Kc6 {[%clk 0:00:19.9]} 45. Kxe6 {[%clk 0:00:09.6]}
45... Kxc5 {[%clk 0:00:21.6]} 46. Kf5 {[%clk 0:00:10.9]} 46... Kd6 {[%clk
0:00:16.9]} 47. Kxg5 {[%clk 0:00:11.9]} 47... Ke7 {[%clk 0:00:18]} 48. Kg6
{[%clk 0:00:12.9]} 48... Kf8 {[%clk 0:00:19]} 49. Kh7 {[%clk 0:00:13]} 1-0

[Event "*** Titled Tuesday Blitz"]
[Site "Chess.com"]
[Date "2019.03.05"]
[Round "7"]
[White "mlchen"]
[Black "JoachimMouhamad"]
[Result "1-0"]
[WhiteElo "2442"]
[BlackElo "2314"]
[TimeControl "180+2"]
[EndTime "14:40:15 PST"]
[Termination "mlchen won by checkmate"]

1. e4 {[%clk 0:03:01.9]} 1... c6 {[%clk 0:03:00.6]} 2. d4 {[%clk 0:03:02.7]}
2... d5 {[%clk 0:03:02.1]} 3. exd5 {[%clk 0:03:04.4]} 3... cxd5 {[%clk
0:03:03.1]} 4. c4 {[%clk 0:03:06]} 4... Nf6 {[%clk 0:03:03.2]} 5. Nc3 {[%clk
0:03:06.7]} 5... Nc6 {[%clk 0:03:04.4]} 6. Nf3 {[%clk 0:03:06.7]} 6... Bg4
{[%clk 0:03:05.2]} 7. cxd5 {[%clk 0:03:05.9]} 7... Nxd5 {[%clk 0:03:05.5]} 8.
Be2 {[%clk 0:03:07.4]} 8... e6 {[%clk 0:02:52.5]} 9. O-O {[%clk 0:03:07.6]} 9...
Be7 {[%clk 0:02:49.5]} 10. h3 {[%clk 0:03:06.5]} 10... Bh5 {[%clk 0:02:48]} 11.
Ne4 {[%clk 0:02:57.2]} 11... O-O {[%clk 0:02:45.9]} 12. a3 {[%clk 0:02:39.8]}
12... Rc8 {[%clk 0:02:46.5]} 13. b4 {[%clk 0:02:39.5]} 13... f5 {[%clk
0:02:28.4]} 14. Nc5 {[%clk 0:02:34]} 14... Bxc5 {[%clk 0:02:19.9]} 15. dxc5
{[%clk 0:02:31.7]} 15... Nc3 {[%clk 0:02:21.2]} 16. Qe1 {[%clk 0:02:32.3]} 16...
Nxe2+ {[%clk 0:02:21.3]} 17. Qxe2 {[%clk 0:02:29.3]} 17... Nd4 {[%clk
0:02:22.4]} 18. Qe3 {[%clk 0:02:29.3]} 18... Bxf3 {[%clk 0:02:08.9]} 19. gxf3
{[%clk 0:02:27.5]} 19... f4 {[%clk 0:01:56.3]} 20. Qe4 {[%clk 0:02:27.3]} 20...
Qg5+ {[%clk 0:01:42.5]} 21. Kh2 {[%clk 0:02:20.2]} 21... Qd5 {[%clk 0:01:18.3]}
22. Qxd5 {[%clk 0:02:09.6]} 22... exd5 {[%clk 0:01:20.2]} 23. Rd1 {[%clk
0:02:03.8]} 23... Nxf3+ {[%clk 0:01:12.9]} 24. Kg2 {[%clk 0:02:04.3]} 24... Nh4+
{[%clk 0:01:12.9]} 25. Kf1 {[%clk 0:02:05.8]} 25... Rf5 {[%clk 0:01:05.7]} 26.
Rd4 {[%clk 0:02:04.5]} 26... g5 {[%clk 0:01:04.9]} 27. Bb2 {[%clk 0:02:00.2]}
27... Re8 {[%clk 0:00:45]} 28. Rad1 {[%clk 0:01:54.8]} 28... Rd8 {[%clk
0:00:34.7]} 29. b5 {[%clk 0:01:55.5]} 29... Kf7 {[%clk 0:00:34.1]} 30. c6 {[%clk
0:01:56.1]} 30... bxc6 {[%clk 0:00:35.3]} 31. bxc6 {[%clk 0:01:57.7]} 31... Rc8
{[%clk 0:00:33.2]} 32. Rxd5 {[%clk 0:01:57.4]} 32... Rxd5 {[%clk 0:00:28.3]} 33.
Rxd5 {[%clk 0:01:58.3]} 33... Rxc6 {[%clk 0:00:28.7]} 34. Rxg5 {[%clk
0:01:49.9]} 34... Rc2 {[%clk 0:00:27.5]} 35. Bd4 {[%clk 0:01:34.3]} 35... f3
{[%clk 0:00:23.7]} 36. Ke1 {[%clk 0:01:11.7]} 36... Ra2 {[%clk 0:00:15.1]} 37.
Rg7+ {[%clk 0:01:04]} 37... Ke6 {[%clk 0:00:16.3]} 38. Rxa7 {[%clk 0:01:05.3]}
38... Kd5 {[%clk 0:00:17.4]} 39. Bb6 {[%clk 0:00:53.9]} 39... Ng2+ {[%clk
0:00:13.4]} 40. Kd1 {[%clk 0:00:53.4]} 40... h5 {[%clk 0:00:11]} 41. a4 {[%clk
0:00:51.8]} 41... Nf4 {[%clk 0:00:11.1]} 42. Rf7 {[%clk 0:00:43.4]} 42... Rxa4
{[%clk 0:00:08.8]} 43. Be3 {[%clk 0:00:40.1]} 43... Ra1+ {[%clk 0:00:08]} 44.
Kd2 {[%clk 0:00:34.8]} 44... Ra2+ {[%clk 0:00:06]} 45. Kd1 {[%clk 0:00:36]}
45... Ra1+ {[%clk 0:00:07.2]} 46. Kc2 {[%clk 0:00:37.2]} 46... Nxh3 {[%clk
0:00:08.4]} 47. Rxf3 {[%clk 0:00:37.7]} 47... Ng1 {[%clk 0:00:08.3]} 48. Rf5+
{[%clk 0:00:37.2]} 48... Ke4 {[%clk 0:00:09.5]} 49. Rxh5 {[%clk 0:00:38.6]}
49... Ra2+ {[%clk 0:00:10.9]} 50. Kb3 {[%clk 0:00:39.4]} 50... Re2 {[%clk
0:00:11.7]} 51. Rh4+ {[%clk 0:00:38.4]} 51... Kd3 {[%clk 0:00:11.8]} 52. Rd4#
{[%clk 0:00:38.9]} 1-0

[Event "*** Titled Tuesday Blitz"]
[Site "Chess.com"]
[Date "2019.03.05"]
[Round "7"]
[White "M1711"]
[Black "Cryptochess"]
[Result "0-1"]
[WhiteElo "2507"]
[BlackElo "2544"]
[TimeControl "180+2"]
[EndTime "14:40:17 PST"]
[Termination "Cryptochess won by resignation"]

1. d4 {[%clk 0:03:01.9]} 1... Nf6 {[%clk 0:03:00.7]} 2. Bg5 {[%clk 0:03:02.3]}
2... g6 {[%clk 0:02:53.6]} 3. Bxf6 {[%clk 0:03:02.8]} 3... exf6 {[%clk
0:02:55.5]} 4. e3 {[%clk 0:03:04]} 4... d5 {[%clk 0:02:55.8]} 5. g3 {[%clk
0:03:04.9]} 5... c5 {[%clk 0:02:54.8]} 6. Bg2 {[%clk 0:02:59.5]} 6... Nc6 {[%clk
0:02:54.1]} 7. dxc5 {[%clk 0:02:58.9]} 7... Be6 {[%clk 0:02:54.2]} 8. Nc3 {[%clk
0:02:54.8]} 8... Bxc5 {[%clk 0:02:48.8]} 9. Bxd5 {[%clk 0:02:50.6]} 9... Qa5
{[%clk 0:02:46]} 10. Bxe6 {[%clk 0:02:34.7]} 10... fxe6 {[%clk 0:02:47.9]} 11.
Qg4 {[%clk 0:02:36]} 11... f5 {[%clk 0:02:41.4]} 12. Qc4 {[%clk 0:02:35.6]}
12... O-O-O {[%clk 0:02:36.8]} 13. Qxe6+ {[%clk 0:02:27.1]} 13... Kb8 {[%clk
0:02:38]} 14. Ne2 {[%clk 0:02:27.3]} 14... Rhe8 {[%clk 0:02:34.3]} 15. Qb3
{[%clk 0:02:04.8]} 15... Ne5 {[%clk 0:02:30.4]} 16. O-O {[%clk 0:02:00.4]} 16...
Nf3+ {[%clk 0:02:26.9]} 17. Kg2 {[%clk 0:02:01.5]} 17... Nd2 {[%clk 0:02:28.4]}
18. Qf7 {[%clk 0:01:58.2]} 18... Nxf1 {[%clk 0:02:27.6]} 19. Kxf1 {[%clk
0:01:57.7]} 19... Re7 {[%clk 0:02:17.1]} 20. Qf6 {[%clk 0:01:56]} 20... Red7
{[%clk 0:02:14.6]} 21. Nf4 {[%clk 0:01:37.9]} 21... Qb4 {[%clk 0:02:06.4]} 22.
Nd3 {[%clk 0:01:25.9]} 22... Qb6 {[%clk 0:01:17.6]} 23. Qxb6 {[%clk 0:01:08.1]}
23... Bxb6 {[%clk 0:01:19.5]} 24. h4 {[%clk 0:01:09]} 24... Ba5 {[%clk
0:01:12.7]} 25. Ne2 {[%clk 0:01:08.6]} 25... Rc8 {[%clk 0:01:13.2]} 26. Nd4
{[%clk 0:01:08.3]} 26... Bb6 {[%clk 0:01:13.2]} 27. c3 {[%clk 0:01:08.3]} 27...
a5 {[%clk 0:01:03.3]} 28. Kg2 {[%clk 0:01:07.6]} 28... a4 {[%clk 0:01:04]} 29.
a3 {[%clk 0:01:07.8]} 29... Re7 {[%clk 0:01:00.2]} 30. h5 {[%clk 0:01:02.9]}
30... Bxd4 {[%clk 0:01:00.2]} 31. exd4 {[%clk 0:01:03.3]} 31... Re2 {[%clk
0:01:01.9]} 32. hxg6 {[%clk 0:00:39.1]} 32... hxg6 {[%clk 0:01:03.8]} 33. Kf3
{[%clk 0:00:28.6]} 33... Rce8 {[%clk 0:01:02.2]} 34. Ne5 {[%clk 0:00:28.4]}
34... Rxb2 {[%clk 0:01:02.7]} 35. Nxg6 {[%clk 0:00:20.2]} 35... Rc8 {[%clk
0:01:03.5]} 36. Rf1 {[%clk 0:00:11.5]} 36... Rxc3+ {[%clk 0:01:04.7]} 37. Kf4
{[%clk 0:00:13.2]} 37... Rxa3 {[%clk 0:01:05.6]} 38. Ne5 {[%clk 0:00:11.8]}
38... Rc3 {[%clk 0:01:05.2]} 39. Kxf5 {[%clk 0:00:11.3]} 39... a3 {[%clk
0:01:06.7]} 40. Nd7+ {[%clk 0:00:10.2]} 40... Kc7 {[%clk 0:01:07.1]} 41. Nc5
{[%clk 0:00:11.8]} 41... a2 {[%clk 0:01:07.8]} 42. Ra1 {[%clk 0:00:08.3]} 42...
Ra3 {[%clk 0:01:01.6]} 43. Rc1 {[%clk 0:00:04.4]} 43... a1=Q {[%clk 0:00:59.8]}
44. Rxa1 {[%clk 0:00:05.1]} 44... Rxa1 {[%clk 0:01:01.7]} 45. f4 {[%clk
0:00:06.3]} 45... b6 {[%clk 0:00:59.7]} 46. Ne4 {[%clk 0:00:06]} 46... Re1
{[%clk 0:00:54.9]} 47. Nf6 {[%clk 0:00:05.4]} 47... Kd6 {[%clk 0:00:51.4]} 48.
g4 {[%clk 0:00:06.1]} 48... Rb5+ {[%clk 0:00:52]} 49. Kg6 {[%clk 0:00:06.8]}
49... Rb4 {[%clk 0:00:53.3]} 50. f5 {[%clk 0:00:04.8]} 50... Rxd4 {[%clk
0:00:54.5]} 51. g5 {[%clk 0:00:06.3]} 51... b5 {[%clk 0:00:55.9]} 52. Kf7 {[%clk
0:00:07.2]} 52... b4 {[%clk 0:00:54.8]} 53. g6 {[%clk 0:00:06.7]} 53... b3
{[%clk 0:00:56.2]} 54. g7 {[%clk 0:00:04.1]} 54... Re7+ {[%clk 0:00:57.3]} 55.
Kf8 {[%clk 0:00:04.6]} 55... Rxg7 {[%clk 0:00:58.8]} 56. Kxg7 {[%clk 0:00:06.3]}
56... b2 {[%clk 0:01:00.4]} 57. Ne8+ {[%clk 0:00:05.3]} 57... Kc6 {[%clk
0:01:01.7]} 58. Kf7 {[%clk 0:00:05.5]} 58... b1=Q {[%clk 0:01:02.9]} 59. Ng7
{[%clk 0:00:07.4]} 59... Rd7+ {[%clk 0:01:03.6]} 60. Kg6 {[%clk 0:00:08.4]}
60... Rxg7+ {[%clk 0:01:05]} 0-1

[Event "*** Titled Tuesday Blitz"]
[Site "Chess.com"]
[Date "2019.03.05"]
[Round "7"]
[White "MaxiAMueller"]
[Black "witcher8"]
[Result "1-0"]
[WhiteElo "2273"]
[BlackElo "2342"]
[TimeControl "180+2"]
[EndTime "14:40:18 PST"]
[Termination "MaxiAMueller won by checkmate"]

1. e4 {[%clk 0:02:56.9]} 1... c6 {[%clk 0:03:00]} 2. Ne2 {[%clk 0:02:52.7]} 2...
d5 {[%clk 0:03:01.9]} 3. e5 {[%clk 0:02:52.2]} 3... Bf5 {[%clk 0:03:00.3]} 4.
Ng3 {[%clk 0:02:52.8]} 4... Bg6 {[%clk 0:03:01.4]} 5. h4 {[%clk 0:02:53]} 5...
h6 {[%clk 0:03:02]} 6. h5 {[%clk 0:02:52.8]} 6... Bh7 {[%clk 0:03:02.9]} 7. e6
{[%clk 0:02:53.7]} 7... fxe6 {[%clk 0:03:04.3]} 8. d4 {[%clk 0:02:51.7]} 8... c5
{[%clk 0:02:48.3]} 9. Nc3 {[%clk 0:02:17.8]} 9... cxd4 {[%clk 0:02:42.8]} 10.
Qxd4 {[%clk 0:02:18.1]} 10... Nc6 {[%clk 0:02:44.1]} 11. Bb5 {[%clk 0:02:16.7]}
11... Nf6 {[%clk 0:02:40.1]} 12. Bf4 {[%clk 0:02:11.3]} 12... Qb6 {[%clk
0:02:27.7]} 13. Qxb6 {[%clk 0:01:56.3]} 13... axb6 {[%clk 0:02:27.5]} 14. O-O-O
{[%clk 0:01:56.2]} 14... O-O-O {[%clk 0:02:18.5]} 15. Rhe1 {[%clk 0:01:46.7]}
15... e5 {[%clk 0:02:02.1]} 16. Bxe5 {[%clk 0:01:27.6]} 16... Nxe5 {[%clk
0:02:04]} 17. Rxe5 {[%clk 0:01:28.4]} 17... e6 {[%clk 0:01:58.2]} 18. Rxe6
{[%clk 0:01:26]} 18... Bc5 {[%clk 0:01:59.7]} 19. Na4 {[%clk 0:01:15.7]} 19...
Bxf2 {[%clk 0:01:57.3]} 20. Nh1 {[%clk 0:01:04.6]} 20... Bh4 {[%clk 0:01:23.2]}
21. Nxb6+ {[%clk 0:00:46.3]} 21... Kc7 {[%clk 0:01:23.1]} 22. Na4 {[%clk
0:00:45.4]} 22... Ne4 {[%clk 0:01:22.4]} 23. c4 {[%clk 0:00:30.2]} 23... d4
{[%clk 0:01:17.2]} 24. c5 {[%clk 0:00:18.9]} 24... Rd5 {[%clk 0:01:08.5]} 25.
Bd3 {[%clk 0:00:16.2]} 25... Nxc5 {[%clk 0:01:02.3]} 26. Nxc5 {[%clk 0:00:15.3]}
26... Rxc5+ {[%clk 0:01:02.8]} 27. Kd2 {[%clk 0:00:14]} 27... Bg5+ {[%clk
0:01:01.6]} 28. Ke2 {[%clk 0:00:14.8]} 28... Bxd3+ {[%clk 0:00:32.8]} 29. Kxd3
{[%clk 0:00:14.8]} 29... Rb5 {[%clk 0:00:23.8]} 30. b3 {[%clk 0:00:13.9]} 30...
Kb8 {[%clk 0:00:21.6]} 31. Ng3 {[%clk 0:00:12.9]} 31... Ra5 {[%clk 0:00:13.7]}
32. a4 {[%clk 0:00:12.3]} 32... Rc8 {[%clk 0:00:13.3]} 33. Ne4 {[%clk
0:00:12.9]} 33... Be3 {[%clk 0:00:13.9]} 34. Re7 {[%clk 0:00:11.3]} 34... Rxh5
{[%clk 0:00:13.9]} 35. Rf1 {[%clk 0:00:11.3]} 35... Ra5 {[%clk 0:00:04.3]} 36.
Rff7 {[%clk 0:00:11.1]} 36... Ra7 {[%clk 0:00:05.4]} 37. Nd6 {[%clk 0:00:10.7]}
37... Rc3+ {[%clk 0:00:05.3]} 38. Ke4 {[%clk 0:00:10.6]} 38... Ra5 {[%clk
0:00:04.8]} 39. Rxb7+ {[%clk 0:00:08.1]} 39... Ka8 {[%clk 0:00:05.8]} 40. Rf8+
{[%clk 0:00:07.5]} 40... Rc8 {[%clk 0:00:06.1]} 41. Rxc8# {[%clk 0:00:08]} 1-0